Cogmind - Beta 17.1 @@@ ROGUE MODE // 2026.09.19 @ 21:08:22 Player: Zaje Result: Destroyed by as-40352 with Assembled Blade Performance ------------- Evolutions (0) 0 Regions Visited (2) 400 Robots Destroyed (25) 125 Value Destroyed (475) 475 Prototype IDs (0) 0 Alien Tech Used (0) 0 Bonus (0) 0 TOTAL SCORE: 1000 Bonus ------- None Cogmind --------- Core Integrity 0/250 Matter 292/300 Energy 248/250 System Corruption 0% Temperature Cool (0) Movement Treading (160) Location -10/Mines Parts ------- > --- POWER (1) -------- Ion Engine > --- PROPULSION (2) --- Light Treads Light Treads > --- UTILITY (2) ------ Heat Sink Large Storage Unit > --- WEAPON (2) ------- Light Assault Rifle Heavy Assault Rifle > --- INVENTORY (15) --- Light Nuclear Core Light Treads Aluminum Leg Aluminum Leg Light Armor Plating Light Cannon Peak State ------------ > --- POWER ------------ Light Nuclear Core > --- PROPULSION ------- Light Treads Light Treads > --- UTILITY ---------- Small Storage Unit Improved Terrain Scanner > --- WEAPON ----------- EM Pulse Gun Light Assault Rifle > --- INVENTORY -------- Ion Engine Ion Engine Aluminum Leg Aluminum Leg [Rating: 11] Favorites ----------- Power Ion Engine Engine Ion Engine Power Core Light Nuclear Core Propulsion Light Treads Treads Light Treads Utility Improved Terrain Scanner Device Improved Terrain Scanner Storage Large Storage Unit Weapon Light Assault Rifle Energy Gun EM Pulse Gun Ballistic Gun Light Assault Rifle Ballistic Cannon Light Cannon Launcher Rocket Launcher Build | -11 -10 -10 ------- Run | Yrd Mat Min Slots Evolved . | . . . Power . | . . . Propulsion . | . . . Utility . | . . . Weapon . | . . . Parts Attached 17 | 7 4 6 Power 3 | 1 1 1 Engine 2 | 1 . 1 Core 1 | . 1 . Reactor . | . . . Propulsion 4 | 2 1 1 Treads 4 | 2 1 1 Leg . | . . . Wheel . | . . . Hover . | . . . Flight . | . . . Utility 4 | 2 1 1 Device 2 | 1 . 1 Storage 2 | 1 1 . Processor . | . . . Hackware . | . . . Protection . | . . . Artifact . | . . . Weapon 6 | 2 1 3 Energy Gun 1 | 1 . . Energy Cannon . | . . . Ballistic Gun 3 | 1 . 2 Ballistic Cannon 1 | . 1 . Launcher 1 | . . 1 Special Weapon . | . . . Impact Weapon . | . . . Slashing Weapon . | . . . Piercing Weapon . | . . . Special Melee Weapon . | . . . Unidentified Prototypes . | . . . Parts Lost 5 | . . 5 Power 1 | . . 1 Propulsion 1 | . . 1 Utility 1 | . . 1 Weapon 2 | . . 2 Highest Loss Streak 4 | . . 4 To Critical Strikes . | . . . Average Backups 5 | 2 4 6 Power 1 | . 1 1 Propulsion 2 | 1 2 3 Utility . | . . . Weapon . | . . 1 Tool/Special . | . . . Unused Backups 3 | . . 3 Power . | . . . Propulsion 2 | . . 2 Utility 1 | . . 1 Weapon . | . . . Tool/Special . | . . . Average Slot Usage (%) 98 | . 100 95 Engine 14 | . 14 14 Treads 27 | . 28 25 Device 13 | . 14 13 Storage 14 | . 14 14 Energy Gun 1 | . 2 . Ballistic Gun 15 | . 13 17 Ballistic Cannon 9 | . 11 7 Peak Build Rating 11 | 9 11 9 Average Rating 8 | 4 9 7 On Entrance 6 | . 9 9 Avg Prop Armor Cover (%) . | . . . Naked Turns . | . . . Heaviest Build 31 | 14 30 31 Greatest Support 40 | 40 40 40 Greatest Overweight (x) 1 | 1 . 1 Average Overweight (x) . | . . . Largest Inventory Capacity 15 | 8 15 15 Average Capacity 12 | 6 11 15 Most Carried 10 | 3 6 10 Average Carried 5 | 2 4 6 Final Capacity 15 | 8 15 15 Final Carried 6 | 3 6 6 Class Distribution -------------------- 100% | Mutant Dominant Class ---------------- Mutant | -10/Materials Mutant | -10/Mines Resources | -11 -10 -10 ----------- Run | Yrd Mat Min Matter Collected 673 | 277 212 184 Remotely . | . . . Salvage Created 712 | 134 468 110 Parts 37 | 6 21 10 Haulers Intercepted 2 | . 2 . Recyclers Shooed 2 | . 2 . Parts Field Recycled . | . . . Retrieved Matter . | . . . Parts Self-Destructed . | . . . Prevented . | . . . Parts Restored . | . . . Kills | -11 -10 -10 ------- Run | Yrd Mat Min Combat Hostiles Destroyed 15 | . 8 7 Guns 6 | . 3 3 Cannons 7 | . 5 2 AOE 2 | . . 2 Classes Destroyed 9 | 3 4 2 Worker 1 | 1 . . Tunneler 2 | 1 . 1 Hauler 2 | . 2 . Recycler 3 | 1 2 . Watcher 3 | . 3 . Swarmer 6 | . 3 3 Grunt 7 | . 5 2 Demolisher 1 | . . 1 Assembled 1 | . . 1 Best Kill Streak 4 | 2 3 4 Combat Bots Only 3 | . 3 3 Max Kills in Single Turn 4 | 1 1 4 Gunslinging . | . . . Exploded 2 | . . 2 Melee . | . . . Uniques/NPCs Destroyed . | . . . Combat | -11 -10 -10 -------- Run | Yrd Mat Min Hostile Shots Fired 85 | . 45 40 Missed 21 | . 11 10 Hits 64 | . 34 30 Melee 2 | . . 2 Projectile 62 | . 34 28 AOE 11 | . . 11 Critical Strikes 1 | . . 1 Damage Taken 1109 | . 356 753 Core 276 | . 78 198 Absorbed by Shields . | . . . Core Remaining (%) 100 | 100 . . Volleys Fired 72 | 7 40 25 Largest 2 | 2 2 2 Hottest 60 | 60 60 53 Shots Fired 143 | 14 80 49 Gun 99 | 14 52 33 Cannon 39 | . 28 11 Launcher 5 | . . 5 Special . | . . . Kinetic 119 | 7 68 44 Thermal . | . . . Explosive 5 | . . 5 Electromagnetic 19 | 7 12 . Robot Hit Streak 10 | 7 10 7 Robot Miss Streak 3 | 1 3 3 Penetration Max . | . . . Secondary Targets . | . . . Shots Hit Robots 88 | 12 52 24 Core Hits 45 | 5 24 16 Critical Kills . | . . . Critical Parts Destroyed . | . . . Critical Strikes 2 | . 2 . Blast 2 | . 2 . Melee Attacks . | . . . Impact . | . . . Slashing . | . . . Piercing . | . . . Sneak Attacks . | . . . Combat Hostiles . | . . . Follow-up Attacks . | . . . Damage Inflicted 1299 | 125 671 503 Guns 613 | 125 307 181 Cannons 506 | . 364 142 Explosions 175 | . . 175 Melee . | . . . Ramming 5 | . . 5 Kinetic 929 | 42 564 323 Thermal . | . . . Explosive 175 | . . 175 Electromagnetic 190 | 83 107 . Impact . | . . . Slashing . | . . . Piercing . | . . . Highest Corruption . | . . . Average Corruption . | . . . Corruption Purged . | . . . Corruption Blocked . | . . . Overload Shots . | . . . Overflow Damage . | . . . Projectiles . | . . . Explosions . | . . . Melee . | . . . Knockbacks 4 | . 3 1 Impact . | . . . Kinetic 3 | . 2 1 Secondary 1 | . 1 . Self-Inflicted Damage 76 | . . 76 Shots 2 | . . 2 Rammed 1 | . . 1 Targets Rammed 1 | . . 1 Kicked . | . . . Crushed . | . . . Highest Temperature 82 | 40 82 70 Average Temperature 26 | 21 24 32 Received Heat Transfer 338 | . 144 194 Siege Activations . | . . . Martial Activations . | . . . Shielding Activations . | . . . Robots Disrupted . | . . . Combat Hostiles . | . . . Robots Corrupted . | . . . Combat Hostiles . | . . . Parts Fried . | . . . Impact Corruptions . | . . . Robots Melted . | . . . Combat Hostiles . | . . . Parts Melted . | . . . Heat Transferred . | . . . Parts Sabotaged . | . . . Parts Stolen . | . . . Parts Stripped . | . . . Power Chain Reactions . | . . . Alert | -11 -10 -10 ------- Run | Yrd Mat Min Maximum Alert Level . | . . . Low Security (%) 100 | 100 100 100 Level 1 . | . . . Level 2 . | . . . Level 3 . | . . . Level 4 . | . . . Level 5 . | . . . High Security . | . . . Max Security . | . . . Peak Influence 108 | 10 108 99 Initial 6 | . 6 . Average 19 | 1 21 19 Influence Increases 454 | 15 251 188 Destroy 0b10 Robot/C 280 | . 160 120 Destroy 0b10 Robot/NC 55 | 15 35 5 Destroy Leader 80 | . 50 30 Successful Hack 5 | . 5 . Destroy Structure 34 | . 1 33 Influence Decreases 454 | 5 261 188 Entered New Map 4 | . 4 . Time Decay 400 | 5 257 138 Lost Part 50 | . . 50 Squads Dispatched 1 | . 1 . Investigation 1 | . 1 . Extermination . | . . . Reinforcement . | . . . Assault . | . . . Garrison . | . . . Intercept . | . . . Searches Triggered . | . . . Construction Impeded . | . . . Haulers Reinforced . | . . . Active Scanning Responses . | . . . Cargo Convoy Interrupts . | . . . Stealth | -11 -10 -10 --------- Run | Yrd Mat Min Distress Signals 1 | . 1 . Communications Jammed . | . . . Distress Signals . | . . . Times Spotted 27 | . 16 11 Peak Tracking Total 5 | . 5 3 Tactical Retreats . | . . . Traps | -11 -10 -10 ------- Run | Yrd Mat Min Traps Triggered 1 | . 1 . Indirectly . | . . . Trap Hack Attempts . | . . . Triggered . | . . . Disarmed . | . . . Reprogrammed . | . . . Reused . | . . . Traps Extracted . | . . . Installed . | . . . Triggered . | . . . Machines | -11 -10 -10 ---------- Run | Yrd Mat Min Machines Disabled . | . . . Max in Single Turn . | . . . Machines Repaired . | . . . Machines Dismantled . | . . . Machines Sabotaged . | . . . Overloaded Fab Kills . | . . . Hacking | -11 -10 -10 --------- Run | Yrd Mat Min Machines Accessed 6 | . 6 . Terminals 6 | . 6 . Fabricators . | . . . Repair Stations . | . . . Recycling Units . | . . . Scanalyzers . | . . . Garrison Access . | . . . Total Hacks 12 | . 12 . Successful 3 | . 3 . Failed 8 | . 8 . Catastrophic 1 | . 1 . Database Lockouts 1 | . 1 . Manual 12 | . 12 . Terminals 12 | . 12 . Fabricators . | . . . Repair Stations . | . . . Recycling Units . | . . . Scanalyzers . | . . . Garrison Access . | . . . Terminal Hacks 3 | . 3 . Robot Analysis 1 | . 1 . Hauler Manifests 1 | . 1 . Zone Layout 1 | . 1 . Fabricator Hacks . | . . . Repair Station Hacks . | . . . Recycling Unit Hacks . | . . . Scanalyzer . | . . . Garrison Access Hacks . | . . . Unauthorized Hacks . | . . . Terminals . | . . . Fabricators . | . . . Repair Stations . | . . . Recycling Units . | . . . Scanalyzers . | . . . Garrison Access . | . . . Data Cores Recovered . | . . . Used . | . . . Hacking Detections 3 | . 3 . Full Trace Events . | . . . Feedback Events . | . . . Feedback Blocked . | . . . Robot Schematics Acquired . | . . . Robots Built . | . . . Authchips . | . . . Time . | . . . Total Robot Build Rating . | . . . Part Schematics Acquired . | . . . Parts Built . | . . . Authchips . | . . . Time . | . . . Total Part Build Rating . | . . . Part Studies Acquired . | . . . Parts Repaired . | . . . Time . | . . . Parts Recycled . | . . . Recycled Matter . | . . . Retrieved Matter . | . . . Retrieved Components . | . . . Parts Scanalyzed . | . . . Part Schematics Acquired . | . . . Parts Damaged . | . . . Bothacking | -11 -10 -10 ------------ Run | Yrd Mat Min Used RIF Installer . | . . . Robots Hacked . | . . . Non-combat . | . . . Combat . | . . . Robot Hacks Applied . | . . . Relay Couplers Released . | . . . Fabnet Peak Effective % . | . . . Robots Rewired . | . . . Allies Hacked . | . . . Hacks Repelled . | . . . Allies | -11 -10 -10 -------- Run | Yrd Mat Min Total Allies . | . . . Largest Group . | . . . Highest-Rated Group . | . . . Highest-Rated Ally . | . . . Total Orders . | . . . Ally Attacks . | . . . Total Damage . | . . . Kills . | . . . Allies Corrupted . | . . . Allies Melted . | . . . Intel | -11 -10 -10 ------- Run | Yrd Mat Min Active Infowar (turns) 1327 | 5 1300 22 Terrain 1327 | 5 1300 22 Robot Analysis Total 1 | . 1 . Derelict Logs Recovered 1 | . . 1 Drone Launches . | . . . Drone Recoveries . | . . . Exploration | -11 -10 -10 ------------- Run | Yrd Mat Min Turns Passed 2122 | 138 1300 684 Spaces Moved 1144 | 68 721 355 Core 3 | 3 . . Treads 1141 | 65 721 355 Legs . | . . . Wheels . | . . . Hover . | . . . Flight . | . . . Fastest Speed 50 | 50 160 160 Average Speed 162 | 155 160 168 Slowest Speed 240 | 160 160 240 Overloaded Moves . | . . . Propulsion Burnouts . | . . . Robots Hopped . | . . . Potential Cave-ins . | . . . Cave-ins Triggered . | . . . Exploration Rate (%) 53 | 3 91 67 Regions Visited 2 Branch Regions 1 Pre-discovered Areas 1 | . . 1 Known Exits Taken . | . . . Unknown Exits Taken 2 | 1 1 . Scrap Searched 2 | . . 2 Spaces Dug . | . . . Terrain Destroyed 61 | . . 61 Melee . | . . . Projectile . | . . . AOE 61 | . . 61 Terrain Rammed . | . . . Walls Destroyed . | . . . Machines Disabled . | . . . Actions | -11 -10 -10 --------- Run | Yrd Mat Min Total 1273 | 84 793 396 Wait 30 | . 25 5 Move 1142 | 67 720 355 Hop . | . . . Pick Up 7 | 3 1 3 Fast Attach 8 | 7 . 1 Attach 4 | . . 4 Detach . | . . . Swap 8 | . 6 2 Drop 1 | . 1 . Fire 72 | 7 40 25 Melee . | . . . Ram . | . . . Kick . | . . . Crush 1 | . . 1 Escape Stasis . | . . . Rewire . | . . . Trap . | . . . Miscellaneous . | . . . Route ------- -11/Scrapyard -10/Materials (discovered 4 exits: [*Mat x3] / [*Min]) -10/Mines (discovered 2 exits: [*Mat x2]) History --------- Turn | Location | Event 24 | -11/Scrapyard | Discovered new exit (range 16) 139 | -11/Scrapyard | Entered Materials 195 | -10/Materials | Discovered new exit (range 16) 213 | -10/Materials | Central database locked down 307 | -10/Materials | Build established: Mutant 698 | -10/Materials | Discovered new exit (range 7) 958 | -10/Materials | Discovered new exit (range 5) 1135 | -10/Materials | Discovered new exit (range 5) 1439 | -10/Materials | Entered Mines 1539 | -10/Mines | Found a hidden stash of uninstalled traps 1550 | -10/Mines | Learned location of Zion (-6) 1597 | -10/Mines | Discovered new exit (range 6) 1637 | -10/Mines | Received a Rocket Launcher from a helpful Derelict 1740 | -10/Mines | Joined a pair of Derelicts in attacking an 0b10 outpost 1810 | -10/Mines | Assembled infested the area 1815 | -10/Mines | Assisted by a Guerilla fighting off Assembled 1840 | -10/Mines | Core integrity fell below 50% 1850 | -10/Mines | Core integrity fell below 20% 1883 | -10/Mines | Lost 4 parts (1p1n2w) 1910 | -10/Mines | Discovered new exit (range 16) 2123 | -10/Mines | Destroyed by as-40352 with Assembled Blade Last Messages --------------- 01878_ The unstable cave ceiling collapses. 01879_ Slammed into U-05 Engineer. 01910_ EXIT=FOUND 01924_ Searching scrap... 01924_ Found Lrg. Storage Unit. 01924_ Found Aluminum Leg. 01924_ Found Datajack. 01924_ Found Signal Interpreter. 01924_ Found 31 Matter. 01925_ Acquired 31 matter. 01927_ Searching scrap... 01927_ Found Tractor Beam. 01927_ Found 64 Matter. 01928_ Acquired 15 matter. 02073_ as-38775 destroyed. 02077_ Acquired 14 matter. 02095_ Acquired 20 matter. 02096_ U-05 Engineer destroyed. 02105_ K-01 Serf destroyed. 02108_ Acquired 6 matter. Map ----- +----------------------------------------------------+ | | | | | | | | | | | | | | | | | | | | | | | | | ?????????????????????????????????????????????????? | | ???????????????????????????????????????????????### | | ???????????###???????????????????????????????## # | | ????####### ##???##????????????????????????## | | ???## ## ### ##???????????????????????# | | ?### ##??????????????????????# | | ## *== ############??????????## # | | # =%%!! % *%= #?????????## ### | | # !== ##### ##### #?????????# ##?? | | ## ### ##????# #???# #????????## ##??? | | ###?# # ##?????# #???# #######??# ##??? | | ## #???# ## #??????# #???# |*%!#### #??? | | ?# #???# #?# #######a#???######=! #??? | | ?# #???# #?# @#????##### #### #??? | | ?# #???# #??? ##########????# #??## ##?? | | ? #???# #######?????????????# ### #???## ##? | | ?####???# #??????????#####?# #?# ###??# ## | | ????????##### ###???????## ### #?# ##?# # | | ????????????# #???????# ## ## #?# < ## | | ????????????## #???????## #?# ###? | | ?????????????# #????????#### ##?# #??? | | ?????????????# #???????????## #??# #??? | | ?????????????# #????????????## ##??# #??? | | ????????????## #?????????????## ##???# #??? | | ???????????## ##?????????????# #????# #??? | | ?????????### ##???????????# #???#! #??? | | ??????#### ####???????# #??#%=#??? | | ?????## ##??????# #### !#??? | | ?????# ## ##??????# /!#??? | | ?????# ##### ##?????# #??? | | ?????# ##???## ##?????# #### ##??? | | ?????## #????## ###???##### #??# #???? | | #?????####????# ##??????## ##??# #???? | | ##??????####### ##???????###???# #???? | | #?????##" ## ##????????????# #???? | | #?????#"" # # #???????###### #???? | | ##?????#!] %+ # #???????# #???? | | #??????#![ + #???????# ######???? | +----------------------------------------------------+ Best States ------------- Heat Dissipation 35 Energy Generation 10 Energy Capacity 250 Matter Stores 300 Matter Capacity 300 Sight Range 16 Terrain Scan Range 16 Terrain Scan Density 10 Evasion (%) 40 Recoil Reduction 2 Item Schematics ----------------- None Robot Schematics ------------------ None Fabricated ------------ Nothing Repaired ---------- Nothing Studied --------- None Alien Tech Used ----------------- None Achievements -------------- None Challenges ------------ None Game ------ Seed RelayGhostGriptreads Manual? 0 Play Time 00:15:12 Cumulative 16.4 hours Start 2026.09.19 @ 20:54:45 End 2026.09.19 @ 21:08:22 Sessions 1 Manual Loads 0 Difficulty Rogue Special Mode None Game No. 28 Rogue 28 Adventurer 0 Explorer 0 Win Type - Total 0 Types 0/0/0/0/0/0/0/0/0/0 Lore% 15 Gallery% 18 Achievement% 18 Wizard Run 0 Options --------- Layout 0 ASCII 0 Keyboard 1 Movement Vi Keybinds 1 Fullscreen 1 Font 24/Smallcaps Map View 76x50 Zoom Use 0% Tactical HUD 1 Map Filters NONE Filters NONE Steam 1 RUN: 60d1cb5b-cfb9-47c6-a0eb-423077b5a93f